[Event "Schack-SM 2024: Junior-SM"]
[Site "Fortnox Arena, Hejaregatan 5, Vaxjo, Sweden"]
[Date "2024.06.30"]
[Round "2.1"]
[White "Grahn, Vidar"]
[Black "Nilsson, Oliver"]
[Result "1-0"]
[TimeControl "90 minutes for 40 moves + 30 minutes for the rest of the game + 30 seconds per move from move one."]
[WhiteTitle "FM"]
[WhiteElo "2264"]
[BlackElo "2099"]

1. e4 {[%clk 01:30:57]} {[%emt 00:00:02]} e5 {[%clk 01:30:53]} {[%emt
00:00:08]} 2. Nf3 {[%clk 01:31:23]} {[%emt 00:00:04]} Nc6 {[%clk 01:31:19]}
{[%emt 00:00:03]} 3. Bb5 {[%clk 01:31:49]} {[%emt 00:00:04]} Nf6 {[%clk
01:31:42]} {[%emt 00:00:07]} 4. d3 {[%clk 01:32:15]} {[%emt 00:00:04]} Bc5
{[%clk 01:31:52]} {[%emt 00:00:20]} 5. O-O {[%clk 01:32:33]} {[%emt 00:00:12]}
O-O {[%clk 01:28:38]} {[%emt 00:03:44]} 6. c3 {[%clk 01:32:53]} {[%emt
00:00:10]} d5 {[%clk 01:27:49]} {[%emt 00:01:20]} 7. exd5 {[%clk 01:33:12]}
{[%emt 00:00:12]} Qxd5 {[%clk 01:28:14]} {[%emt 00:00:04]} 8. Bc4 {[%clk
01:33:33]} {[%emt 00:00:09]} Qd6 {[%clk 01:27:38]} {[%emt 00:01:06]} 9. b4
{[%clk 01:33:41]} {[%emt 00:00:21]} Bb6 {[%clk 01:28:04]} {[%emt 00:00:05]} 10.
Nbd2 {[%clk 01:33:57]} {[%emt 00:00:14]} Bf5 {[%clk 01:27:54]} {[%emt
00:00:40]} 11. Qc2 {[%clk 01:34:21]} {[%emt 00:00:06]} a5 {[%clk 01:18:26]}
{[%emt 00:09:58]} 12. b5 {[%clk 01:33:25]} {[%emt 00:01:25]} Ne7 {[%clk
01:16:15]} {[%emt 00:02:41]} 13. a4 {[%clk 01:28:27]} {[%emt 00:05:29]} Rad8
{[%clk 01:00:52]} {[%emt 00:15:52]} 14. Qb3 {[%clk 01:22:54]} {[%emt 00:06:03]}
Ned5 {[%clk 00:51:26]} {[%emt 00:09:56]} 15. Ba3 {[%clk 01:18:21]} {[%emt
00:05:02]} Bc5 {[%clk 00:51:18]} {[%emt 00:00:38]} 16. Bxc5 {[%clk 01:18:08]}
{[%emt 00:00:43]} Qxc5 {[%clk 00:51:44]} {[%emt 00:00:05]} 17. Nxe5 {[%clk
01:17:21]} {[%emt 00:01:17]} Be6 {[%clk 00:23:14]} {[%emt 00:29:00]} 18. d4
{[%clk 01:16:20]} {[%emt 00:01:31]} Qd6 {[%clk 00:20:53]} {[%emt 00:02:51]} 19.
Rfe1 {[%clk 01:12:02]} {[%emt 00:04:48]} Rfe8 {[%clk 00:20:58]} {[%emt
00:00:26]} 20. Ndf3 {[%clk 01:05:37]} {[%emt 00:06:54]} h6 {[%clk 00:20:47]}
{[%emt 00:00:41]} 21. Nd3 {[%clk 01:03:47]} {[%emt 00:02:19]} Nd7 {[%clk
00:16:48]} {[%emt 00:04:29]} 22. Nfe5 {[%clk 01:00:40]} {[%emt 00:03:38]} N7b6
{[%clk 00:16:40]} {[%emt 00:00:39]} 23. Nc5 {[%clk 00:59:51]} {[%emt 00:01:19]}
Bc8 {[%clk 00:14:37]} {[%emt 00:02:33]} 24. Bf1 {[%clk 00:57:09]} {[%emt
00:03:11]} Re7 {[%clk 00:12:19]} {[%emt 00:02:49]} 25. Nf3 {[%clk 00:50:20]}
{[%emt 00:07:19]} Rde8 {[%clk 00:12:11]} {[%emt 00:00:38]} 26. Rxe7 {[%clk
00:50:20]} {[%emt 00:00:30]} Rxe7 {[%clk 00:12:28]} {[%emt 00:00:13]} 27. Re1
{[%clk 00:48:19]} {[%emt 00:02:31]} Rxe1 {[%clk 00:12:21]} {[%emt 00:00:38]} 28.
Nxe1 {[%clk 00:48:45]} {[%emt 00:00:05]} Qf4 {[%clk 00:12:32]} {[%emt
00:00:18]} 29. Ned3 {[%clk 00:47:53]} {[%emt 00:01:22]} Qg5 {[%clk 00:11:25]}
{[%emt 00:01:37]} 30. Ne4 {[%clk 00:37:35]} {[%emt 00:10:48]} Qg6 {[%clk
00:09:57]} {[%emt 00:01:58]} 31. f3 {[%clk 00:33:38]} {[%emt 00:04:28]} Ne3
{[%clk 00:04:52]} {[%emt 00:05:35]} 32. Ne5 {[%clk 00:30:22]} {[%emt 00:03:46]}
Be6 {[%clk 00:02:44]} {[%emt 00:02:38]} 33. c4 {[%clk 00:29:49]} {[%emt
00:01:04]} 1-0

[Event "Schack-SM 2024: Junior-SM"]
[Site "Fortnox Arena, Hejaregatan 5, Vaxjo, Sweden"]
[Date "2024.06.30"]
[Round "2.2"]
[White "Frank, Anton 2006"]
[Black "Seo, Jung Hyun"]
[Result "1-0"]
[TimeControl "90 minutes for 40 moves + 30 minutes for the rest of the game + 30 seconds per move from move one."]
[WhiteElo "2131"]
[BlackElo "2137"]

1. e4 {[%clk 01:30:31]} {[%emt 00:00:29]} e6 {[%clk 01:30:45]} {[%emt
00:00:17]} 2. d4 {[%clk 01:30:52]} {[%emt 00:00:07]} d5 {[%clk 01:31:12]}
{[%emt 00:00:03]} 3. e5 {[%clk 01:31:14]} {[%emt 00:00:08]} c5 {[%clk
01:31:40]} {[%emt 00:00:03]} 4. c3 {[%clk 01:31:36]} {[%emt 00:00:07]} Nc6
{[%clk 01:32:08]} {[%emt 00:00:02]} 5. Nf3 {[%clk 01:31:54]} {[%emt 00:00:11]}
Bd7 {[%clk 01:32:37]} {[%emt 00:00:02]} 6. Be2 {[%clk 01:32:09]} {[%emt
00:00:15]} Nge7 {[%clk 01:33:01]} {[%emt 00:00:06]} 7. Na3 {[%clk 01:32:25]}
{[%emt 00:00:14]} Ng6 {[%clk 01:32:10]} {[%emt 00:01:21]} 8. h4 {[%clk
01:31:29]} {[%emt 00:01:25]} Be7 {[%clk 01:19:04]} {[%emt 00:13:37]} 9. h5
{[%clk 01:29:37]} {[%emt 00:02:22]} Nh4 {[%clk 01:19:14]} {[%emt 00:00:19]} 10.
Nxh4 {[%clk 01:29:05]} {[%emt 00:01:03]} Bxh4 {[%clk 01:19:41]} {[%emt
00:00:04]} 11. h6 {[%clk 01:27:26]} {[%emt 00:02:08]} g6 {[%clk 01:18:59]}
{[%emt 00:01:12]} 12. Nc2 {[%clk 01:23:32]} {[%emt 00:04:24]} cxd4 {[%clk
01:15:47]} {[%emt 00:03:42]} 13. cxd4 {[%clk 01:23:47]} {[%emt 00:00:15]} Be7
{[%clk 01:16:04]} {[%emt 00:00:14]} 14. Bd2 {[%clk 00:56:04]} {[%emt 00:28:13]}
Qb6 {[%clk 01:12:48]} {[%emt 00:03:45]} 15. Bc3 {[%clk 00:56:01]} {[%emt
00:00:33]} Nb4 {[%clk 01:06:03]} {[%emt 00:07:16]} 16. Ne3 {[%clk 00:46:31]}
{[%emt 00:09:59]} Bb5 {[%clk 01:05:47]} {[%emt 00:00:46]} 17. O-O {[%clk
00:44:40]} {[%emt 00:02:22]} Bxe2 {[%clk 00:59:40]} {[%emt 00:06:38]} 18. Qxe2
{[%clk 00:45:02]} {[%emt 00:00:07]} Nc6 {[%clk 00:59:29]} {[%emt 00:00:41]} 19.
Qg4 {[%clk 00:40:39]} {[%emt 00:04:53]} O-O {[%clk 00:51:24]} {[%emt 00:08:34]}
20. Rad1 {[%clk 00:39:08]} {[%emt 00:02:01]} f5 {[%clk 00:44:11]} {[%emt
00:07:44]} 21. exf6 {[%clk 00:38:00]} {[%emt 00:01:39]} Rxf6 {[%clk 00:44:33]}
{[%emt 00:00:07]} 22. Qe2 {[%clk 00:37:14]} {[%emt 00:01:15]} Qa6 {[%clk
00:40:52]} {[%emt 00:04:12]} 23. Rfe1 {[%clk 00:35:01]} {[%emt 00:02:43]} Qxe2
{[%clk 00:40:56]} {[%emt 00:00:26]} 24. Rxe2 {[%clk 00:35:29]} {[%emt
00:00:02]} Kf7 {[%clk 00:38:38]} {[%emt 00:02:47]} 25. g3 {[%clk 00:31:21]}
{[%emt 00:04:39]} Bf8 {[%clk 00:37:45]} {[%emt 00:01:22]} 26. Ng4 {[%clk
00:26:35]} {[%emt 00:05:17]} Rf5 {[%clk 00:38:07]} {[%emt 00:00:06]} 27. Rde1
{[%clk 00:26:55]} {[%emt 00:00:12]} Re8 {[%clk 00:38:23]} {[%emt 00:00:14]} 28.
Ne3 {[%clk 00:15:02]} {[%emt 00:12:23]} Bxh6 {[%clk 00:38:21]} {[%emt
00:00:31]} 29. Nxf5 {[%clk 00:15:15]} {[%emt 00:00:17]} gxf5 {[%clk 00:38:49]}
{[%emt 00:00:03]} 30. b4 {[%clk 00:13:01]} {[%emt 00:02:44]} Bg7 {[%clk
00:36:30]} {[%emt 00:02:48]} 31. Rd1 {[%clk 00:13:20]} {[%emt 00:00:12]} b5
{[%clk 00:36:30]} {[%emt 00:00:29]} 32. a4 {[%clk 00:10:44]} {[%emt 00:03:06]}
Rb8 {[%clk 00:29:36]} {[%emt 00:07:25]} 33. Ra2 {[%clk 00:11:04]} {[%emt
00:00:10]} bxa4 {[%clk 00:29:35]} {[%emt 00:00:31]} 34. Rxa4 {[%clk 00:11:23]}
{[%emt 00:00:11]} Rb6 {[%clk 00:29:53]} {[%emt 00:00:12]} 35. Kg2 {[%clk
00:08:47]} {[%emt 00:03:06]} a6 {[%clk 00:29:10]} {[%emt 00:01:14]} 36. f4
{[%clk 00:06:26]} {[%emt 00:02:50]} Ke7 {[%clk 00:25:10]} {[%emt 00:04:28]} 37.
Kf2 {[%clk 00:05:42]} {[%emt 00:01:16]} Kf7 {[%clk 00:24:11]} {[%emt 00:01:29]}
38. Ke3 {[%clk 00:04:53]} {[%emt 00:01:19]} Bf8 {[%clk 00:24:34]} {[%emt
00:00:07]} 39. Rb1 {[%clk 00:03:50]} {[%emt 00:01:33]} Kg6 {[%clk 00:24:36]}
{[%emt 00:00:27]} 40. Kd3 {[%clk 00:02:55]} {[%emt 00:01:26]} h6 {[%clk
00:24:56]} {[%emt 00:00:10]} 41. Ke3 {[%clk 00:16:34]} {[%emt 00:16:52]} Be7
{[%clk 00:53:56]} {[%emt 00:01:28]} 42. Rb3 {[%clk 00:14:38]} {[%emt 00:02:27]}
Kf6 {[%clk 00:53:57]} {[%emt 00:00:29]} 43. Kf3 {[%clk 00:10:06]} {[%emt
00:05:01]} h5 {[%clk 00:54:05]} {[%emt 00:00:23]} 44. Rb2 {[%clk 00:07:33]}
{[%emt 00:03:04]} Kf7 {[%clk 00:54:26]} {[%emt 00:00:09]} 45. Ra1 {[%clk
00:06:31]} {[%emt 00:01:32]} Nxb4 {[%clk 00:45:19]} {[%emt 00:09:36]} 46. Ra4
{[%clk 00:06:01]} {[%emt 00:01:00]} a5 {[%clk 00:45:40]} {[%emt 00:00:10]} 47.
Rxa5 {[%clk 00:05:49]} {[%emt 00:00:41]} Rb8 {[%clk 00:44:56]} {[%emt
00:01:13]} 48. Ra7 {[%clk 00:05:02]} {[%emt 00:01:18]} Nc6 {[%clk 00:43:33]}
{[%emt 00:01:53]} 49. Rc7 {[%clk 00:04:47]} {[%emt 00:00:46]} Rxb2 {[%clk
00:39:50]} {[%emt 00:04:13]} 50. Bxb2 {[%clk 00:05:12]} {[%emt 00:00:05]} Nb4
{[%clk 00:39:19]} {[%emt 00:01:01]} 51. Rxe7+ {[%clk 00:05:03]} {[%emt
00:00:39]} Kxe7 {[%clk 00:39:46]} {[%emt 00:00:04]} 52. Ba3 {[%clk 00:05:29]}
{[%emt 00:00:03]} Kd6 {[%clk 00:39:45]} {[%emt 00:00:31]} 53. Bxb4+ {[%clk
00:05:54]} {[%emt 00:00:06]} Kc6 {[%clk 00:40:12]} {[%emt 00:00:01]} 54. Kg2
{[%clk 00:05:48]} {[%emt 00:00:36]} Kb5 {[%clk 00:40:41]} {[%emt 00:00:02]} 55.
Bd6 {[%clk 00:06:06]} {[%emt 00:00:11]} Kc4 {[%clk 00:41:07]} {[%emt 00:00:04]}
56. Be5 {[%clk 00:06:27]} {[%emt 00:00:09]} Kd3 {[%clk 00:41:33]} {[%emt
00:00:05]} 57. Kh3 {[%clk 00:06:48]} {[%emt 00:00:08]} Ke3 {[%clk 00:41:59]}
{[%emt 00:00:04]} 58. Kh4 {[%clk 00:07:09]} {[%emt 00:00:09]} Kf3 {[%clk
00:42:28]} {[%emt 00:00:01]} 59. Kxh5 {[%emt 00:00:12]} 1-0

[Event "Schack-SM 2024: Junior-SM"]
[Site "Fortnox Arena, Hejaregatan 5, Vaxjo, Sweden"]
[Date "2024.06.30"]
[Round "2.3"]
[White "Strom-Engdahl, Alexander"]
[Black "Valcu, Lavinia"]
[Result "1/2-1/2"]
[TimeControl "90 minutes for 40 moves + 30 minutes for the rest of the game + 30 seconds per move from move one."]
[WhiteElo "2191"]
[BlackElo "1971"]

1. e4 {[%clk 01:30:28]} {[%emt 00:00:32]} g6 {[%clk 01:30:46]} {[%emt
00:00:14]} 2. d4 {[%clk 01:30:49]} {[%emt 00:00:09]} d6 {[%clk 01:31:11]}
{[%emt 00:00:05]} 3. Nf3 {[%clk 01:31:12]} {[%emt 00:00:07]} Bg7 {[%clk
01:31:35]} {[%emt 00:00:07]} 4. Be2 {[%clk 01:31:34]} {[%emt 00:00:06]} Nd7
{[%clk 01:31:02]} {[%emt 00:01:03]} 5. O-O {[%clk 01:31:13]} {[%emt 00:00:51]}
e5 {[%clk 01:30:24]} {[%emt 00:01:09]} 6. dxe5 {[%clk 01:30:10]} {[%emt
00:01:33]} dxe5 {[%clk 01:29:18]} {[%emt 00:01:36]} 7. Nc3 {[%clk 01:28:56]}
{[%emt 00:01:43]} Ngf6 {[%clk 01:27:15]} {[%emt 00:02:33]} 8. a4 {[%clk
01:25:46]} {[%emt 00:03:41]} O-O {[%clk 01:24:04]} {[%emt 00:03:41]} 9. Bc4
{[%clk 01:24:20]} {[%emt 00:01:56]} Qe7 {[%clk 01:07:45]} {[%emt 00:16:49]} 10.
Be3 {[%clk 01:12:58]} {[%emt 00:11:51]} c6 {[%clk 00:58:13]} {[%emt 00:10:04]}
11. Re1 {[%clk 00:58:53]} {[%emt 00:14:33]} Nc5 {[%clk 00:54:29]} {[%emt
00:04:15]} 12. Bd3 {[%clk 00:49:27]} {[%emt 00:09:57]} Rd8 {[%clk 00:48:14]}
{[%emt 00:06:44]} 13. Qe2 {[%clk 00:48:20]} {[%emt 00:01:36]} Bg4 {[%clk
00:40:05]} {[%emt 00:08:39]} 14. Rad1 {[%clk 00:46:36]} {[%emt 00:02:14]} Nh5
{[%clk 00:37:31]} {[%emt 00:03:05]} 15. h3 {[%clk 00:43:02]} {[%emt 00:04:04]}
Bd7 {[%clk 00:33:55]} {[%emt 00:04:06]} 16. Bc4 {[%clk 00:39:21]} {[%emt
00:04:10]} h6 {[%clk 00:25:18]} {[%emt 00:09:09]} 17. Rd2 {[%clk 00:38:14]}
{[%emt 00:01:36]} Nf6 {[%clk 00:22:11]} {[%emt 00:03:37]} 18. Bxc5 {[%clk
00:36:10]} {[%emt 00:02:34]} Qxc5 {[%clk 00:22:30]} {[%emt 00:00:10]} 19. Red1
{[%clk 00:36:12]} {[%emt 00:00:28]} Qe7 {[%clk 00:19:53]} {[%emt 00:03:08]} 20.
Qe3 {[%clk 00:34:20]} {[%emt 00:02:22]} Re8 {[%clk 00:14:40]} {[%emt 00:05:42]}
21. Bb3 {[%clk 00:28:11]} {[%emt 00:06:40]} Bf8 {[%clk 00:12:51]} {[%emt
00:02:20]} 22. Rd3 {[%clk 00:23:49]} {[%emt 00:04:51]} Kg7 {[%clk 00:12:39]}
{[%emt 00:00:42]} 23. Nd2 {[%clk 00:23:19]} {[%emt 00:01:00]} Be6 {[%clk
00:10:45]} {[%emt 00:02:25]} 24. Nc4 {[%clk 00:22:05]} {[%emt 00:01:44]} Bxc4
{[%clk 00:10:22]} {[%emt 00:00:53]} 25. Bxc4 {[%clk 00:22:28]} {[%emt
00:00:06]} Qc5 {[%clk 00:10:15]} {[%emt 00:00:38]} 26. Qxc5 {[%clk 00:19:17]}
{[%emt 00:03:42]} Bxc5 {[%clk 00:10:37]} {[%emt 00:00:06]} 27. g3 {[%clk
00:15:42]} {[%emt 00:04:06]} a6 {[%clk 00:06:45]} {[%emt 00:04:23]} 28. Bb3
{[%clk 00:11:36]} {[%emt 00:04:35]} b5 {[%clk 00:06:14]} {[%emt 00:01:01]} 29.
Re1 {[%clk 00:11:12]} {[%emt 00:00:53]} Red8 {[%clk 00:05:55]} {[%emt
00:00:49]} 30. Kg2 {[%clk 00:09:37]} {[%emt 00:02:06]} Rxd3 {[%clk 00:04:57]}
{[%emt 00:01:29]} 31. cxd3 {[%clk 00:10:00]} {[%emt 00:00:06]} Rd8 {[%clk
00:05:06]} {[%emt 00:00:21]} 32. Rd1 {[%clk 00:09:06]} {[%emt 00:01:24]} Bd4
{[%clk 00:03:06]} {[%emt 00:02:30]} 33. Bc2 {[%clk 00:04:56]} {[%emt 00:04:40]}
Ne8 {[%clk 00:02:29]} {[%emt 00:01:06]} 34. Rb1 {[%clk 00:04:27]} {[%emt
00:00:59]} Nc7 {[%clk 00:02:35]} {[%emt 00:00:25]} 35. Ne2 {[%clk 00:03:49]}
{[%emt 00:01:08]} Ne6 {[%clk 00:02:27]} {[%emt 00:00:38]} 36. b4 {[%clk
00:03:34]} {[%emt 00:00:45]} Bb6 {[%clk 00:01:41]} {[%emt 00:01:17]} 37. axb5
{[%clk 00:03:35]} {[%emt 00:00:29]} axb5 {[%clk 00:02:05]} {[%emt 00:00:06]} 38.
Ra1 {[%clk 00:03:39]} {[%emt 00:00:25]} Nd4 {[%clk 00:01:39]} {[%emt 00:00:56]}
39. Bd1 {[%clk 00:02:29]} {[%emt 00:01:39]} Nxe2 40. Bxe2 {[%clk 00:02:58]} Bd4
{[%clk 00:01:47]} {[%emt 00:00:19]} 41. Rc1 {[%clk 00:03:05]} {[%emt 00:00:23]}
Rd6 {[%clk 00:00:45]} {[%emt 00:01:32]} 42. Rc2 {[%clk 00:26:00]} {[%emt
00:07:35]} Kf8 {[%clk 00:29:52]} {[%emt 00:01:22]} 43. Kf1 {[%clk 00:18:49]}
{[%emt 00:07:42]} Ke7 {[%clk 00:29:46]} {[%emt 00:00:35]} 44. Ke1 {[%clk
00:19:10]} {[%emt 00:00:09]} Rf6 {[%clk 00:27:05]} {[%emt 00:03:11]} 45. f3
{[%clk 00:18:19]} {[%emt 00:01:22]} Kd6 {[%clk 00:26:46]} {[%emt 00:00:49]} 46.
Bd1 {[%clk 00:17:44]} {[%emt 00:01:05]} Re6 {[%clk 00:26:01]} {[%emt 00:01:15]}
47. Kd2 {[%clk 00:17:36]} {[%emt 00:00:37]} Bf2 {[%clk 00:23:47]} {[%emt
00:02:44]} 48. g4 {[%clk 00:17:39]} {[%emt 00:00:27]} Kc7 {[%clk 00:14:20]}
{[%emt 00:09:59]} 49. Ra2 {[%clk 00:16:00]} {[%emt 00:02:07]} Kb7 {[%clk
00:13:55]} {[%emt 00:00:54]} 50. Bb3 {[%clk 00:13:16]} {[%emt 00:03:15]} Re7
{[%clk 00:11:56]} {[%emt 00:02:31]} 51. Ke2 {[%clk 00:11:18]} {[%emt 00:02:28]}
Bb6 {[%clk 00:11:30]} {[%emt 00:00:56]} 52. Kd2 {[%clk 00:11:30]} {[%emt
00:00:17]} Rd7 {[%clk 00:11:02]} {[%emt 00:00:58]} 53. Kc3 {[%clk 00:11:28]}
{[%emt 00:00:31]} Bc7 {[%clk 00:10:08]} {[%emt 00:01:25]} 54. Rb2 {[%clk
00:11:08]} {[%emt 00:00:49]} Bd6 {[%clk 00:10:05]} {[%emt 00:00:33]} 55. Ba2
{[%clk 00:09:30]} {[%emt 00:02:08]} Bf8 {[%clk 00:08:30]} {[%emt 00:02:05]} 56.
Bb3 {[%clk 00:08:49]} {[%emt 00:01:11]} g5 {[%clk 00:06:07]} {[%emt 00:02:54]}
57. Ba2 {[%clk 00:08:38]} {[%emt 00:00:41]} f6 {[%clk 00:05:17]} {[%emt
00:01:20]} 58. Be6 {[%clk 00:08:16]} {[%emt 00:00:52]} Rd8 {[%clk 00:05:27]}
{[%emt 00:00:20]} 59. Bf7 {[%clk 00:07:06]} {[%emt 00:01:40]} Bd6 {[%clk
00:05:46]} {[%emt 00:00:12]} 60. Be6 {[%clk 00:06:29]} {[%emt 00:01:06]} Bc7
{[%clk 00:06:11]} {[%emt 00:00:05]} 61. Kc2 {[%clk 00:06:14]} {[%emt 00:00:45]}
Bb6 {[%clk 00:06:28]} {[%emt 00:00:13]} 62. Ra2 {[%clk 00:06:05]} {[%emt
00:00:38]} Bd4 {[%clk 00:06:10]} {[%emt 00:00:48]} 63. Kd2 {[%clk 00:05:37]}
{[%emt 00:00:59]} Ra8 {[%clk 00:06:22]} {[%emt 00:00:18]} 64. Rxa8 {[%clk
00:05:19]} {[%emt 00:00:48]} Kxa8 {[%clk 00:06:46]} {[%emt 00:00:05]} 65. Bd7
{[%clk 00:05:29]} {[%emt 00:00:20]} Kb7 {[%clk 00:07:14]} {[%emt 00:00:03]} 66.
Kc2 {[%clk 00:05:09]} {[%emt 00:00:50]} Kb6 {[%clk 00:07:40]} {[%emt 00:00:05]}
67. Be8 {[%clk 00:04:06]} {[%emt 00:01:32]} c5 {[%clk 00:06:59]} {[%emt
00:01:11]} 68. bxc5+ {[%clk 00:03:43]} {[%emt 00:00:53]} Kxc5 {[%clk 00:07:23]}
{[%emt 00:00:06]} 69. Kd2 {[%clk 00:03:20]} {[%emt 00:00:53]} Bf2 {[%clk
00:06:14]} {[%emt 00:01:38]} 70. Ke2 {[%clk 00:03:15]} {[%emt 00:00:36]} Bg3
{[%clk 00:06:25]} {[%emt 00:00:18]} 71. d4+ {[%clk 00:01:34]} {[%emt 00:02:12]}
exd4 {[%clk 00:06:36]} {[%emt 00:00:19]} 72. Kd3 {[%clk 00:01:46]} {[%emt
00:00:17]} Be1 {[%clk 00:06:23]} {[%emt 00:00:43]} 73. Bf7 {[%clk 00:01:50]}
{[%emt 00:00:26]} Bc3 {[%clk 00:06:42]} {[%emt 00:00:11]} 74. e5 {[%clk
00:01:38]} {[%emt 00:00:43]} fxe5 {[%clk 00:06:57]} {[%emt 00:00:14]} 75. Be8
{[%clk 00:01:42]} {[%emt 00:00:27]} Be1 {[%clk 00:06:29]} {[%emt 00:00:57]} 76.
Bd7 {[%clk 00:01:56]} {[%emt 00:00:17]} Bg3 {[%clk 00:06:54]} {[%emt 00:00:05]}
77. Be8 {[%clk 00:02:08]} {[%emt 00:00:17]} Kb4 {[%clk 00:06:56]} {[%emt
00:00:28]} 78. Bd7 {[%clk 00:02:24]} {[%emt 00:00:14]} Ka5 {[%clk 00:05:38]}
{[%emt 00:01:49]} 79. Be8 {[%clk 00:02:41]} {[%emt 00:00:12]} Be1 {[%clk
00:05:32]} {[%emt 00:00:36]} 80. Bd7 {[%clk 00:02:55]} {[%emt 00:00:18]} b4
{[%clk 00:03:13]} {[%emt 00:02:47]} 81. Kc4 {[%clk 00:03:24]} {[%emt 00:00:03]}
Bc3 {[%clk 00:01:56]} {[%emt 00:01:46]} 82. Be8 {[%clk 00:03:26]} {[%emt
00:00:28]} Kb6 {[%clk 00:02:01]} {[%emt 00:00:24]} 83. Ba4 {[%clk 00:03:19]}
{[%emt 00:00:38]} Kc7 {[%clk 00:02:22]} {[%emt 00:00:08]} 84. Bb3 {[%clk
00:03:44]} {[%emt 00:00:05]} Kd6 {[%clk 00:02:47]} {[%emt 00:00:05]} 85. Kd3
{[%clk 00:04:08]} {[%emt 00:00:06]} Ke7 {[%clk 00:02:06]} {[%emt 00:01:12]} 86.
Ke4 {[%clk 00:04:30]} {[%emt 00:00:08]} Kf6 {[%clk 00:02:31]} {[%emt 00:00:04]}
87. Kd3 {[%clk 00:04:56]} {[%emt 00:00:05]} e4+ {[%clk 00:02:27]} {[%emt
00:00:34]} 88. Kxe4 {[%clk 00:05:15]} {[%emt 00:00:11]} d3 {[%clk 00:02:47]}
{[%emt 00:00:09]} 89. Kxd3 {[%clk 00:05:42]} {[%emt 00:00:04]} Ke5 {[%clk
00:03:14]} {[%emt 00:00:03]} 90. Bf7 {[%clk 00:06:03]} {[%emt 00:00:08]} Kf4
{[%clk 00:03:40]} {[%emt 00:00:04]} 91. Kc2 {[%clk 00:06:24]} {[%emt 00:00:10]}
Kxf3 {[%clk 00:03:58]} {[%emt 00:00:12]} 92. Kb3 {[%clk 00:06:49]} {[%emt
00:00:05]} Kg3 {[%clk 00:04:19]} {[%emt 00:00:09]} 93. Bh5 {[%clk 00:07:15]}
{[%emt 00:00:04]} Kxh3 {[%clk 00:04:42]} {[%emt 00:00:06]} 1/2-1/2

[Event "Schack-SM 2024: Junior-SM"]
[Site "Fortnox Arena, Hejaregatan 5, Vaxjo, Sweden"]
[Date "2024.06.30"]
[Round "2.4"]
[White "Wernberg, Hugo"]
[Black "Soderstrom, Adrian"]
[Result "1/2-1/2"]
[TimeControl "90 minutes for 40 moves + 30 minutes for the rest of the game + 30 seconds per move from move one."]
[WhiteTitle "FM"]
[BlackTitle "FM"]
[WhiteElo "2208"]
[BlackElo "2351"]

1. Nf3 {[%clk 01:30:54]} {[%emt 00:00:05]} d5 {[%clk 01:30:08]} {[%emt
00:00:52]} 2. e3 {[%clk 01:31:11]} {[%emt 00:00:14]} Nf6 {[%clk 01:30:31]}
{[%emt 00:00:07]} 3. c4 {[%clk 01:31:22]} {[%emt 00:00:19]} c6 {[%clk
01:29:59]} {[%emt 00:01:02]} 4. Qc2 {[%clk 01:31:21]} {[%emt 00:00:31]} e6
{[%clk 01:27:22]} {[%emt 00:03:07]} 5. b3 {[%clk 01:30:56]} {[%emt 00:00:56]}
Bd6 {[%clk 01:26:51]} {[%emt 00:01:00]} 6. Bb2 {[%clk 01:31:06]} {[%emt
00:00:20]} O-O {[%clk 01:20:55]} {[%emt 00:06:26]} 7. d4 {[%clk 01:29:09]}
{[%emt 00:02:26]} Ne4 {[%clk 01:16:44]} {[%emt 00:04:42]} 8. Bd3 {[%clk
01:16:47]} {[%emt 00:12:50]} f5 {[%clk 01:16:28]} {[%emt 00:00:49]} 9. O-O
{[%clk 01:12:38]} {[%emt 00:04:38]} Nd7 {[%clk 01:10:31]} {[%emt 00:06:27]} 10.
Ne5 {[%clk 01:11:00]} {[%emt 00:02:07]} Qc7 {[%clk 00:57:16]} {[%emt 00:13:45]}
11. f4 {[%clk 00:51:33]} {[%emt 00:19:58]} Nxe5 {[%clk 00:53:35]} {[%emt
00:04:10]} 12. fxe5 {[%clk 00:48:39]} {[%emt 00:03:24]} Be7 {[%clk 00:52:00]}
{[%emt 00:02:06]} 13. Ba3 {[%clk 00:35:05]} {[%emt 00:14:04]} Bxa3 {[%clk
00:50:56]} {[%emt 00:01:34]} 14. Nxa3 {[%clk 00:34:47]} {[%emt 00:00:47]} Qe7
{[%clk 00:49:04]} {[%emt 00:02:22]} 15. Qb2 {[%clk 00:31:57]} {[%emt 00:03:20]}
Bd7 {[%clk 00:45:54]} {[%emt 00:03:40]} 16. Bxe4 {[%clk 00:26:04]} {[%emt
00:06:23]} fxe4 {[%clk 00:46:03]} {[%emt 00:00:21]} 17. b4 {[%clk 00:20:02]}
{[%emt 00:06:32]} a6 {[%clk 00:29:57]} {[%emt 00:16:37]} 18. c5 {[%clk
00:17:55]} {[%emt 00:02:36]} Qg5 {[%clk 00:29:22]} {[%emt 00:01:06]} 19. Qe2
{[%clk 00:16:25]} {[%emt 00:01:59]} Rf5 {[%clk 00:29:04]} {[%emt 00:00:48]} 20.
Rxf5 {[%clk 00:15:25]} {[%emt 00:01:30]} exf5 {[%clk 00:29:16]} {[%emt
00:00:19]} 21. Nc2 {[%clk 00:14:30]} {[%emt 00:01:24]} Rf8 {[%clk 00:27:44]}
{[%emt 00:02:01]} 1/2-1/2